fUSD/lending_fUSD_20251226
["ID","MTS","AMOUNT","RATE_DAILY","PERIOD"]
[399860870,1766761847916,-416.15462807,0.00017,2]
[399860871,1766761847928,-8674.62030018,0.00017,2]
[399860872,1766761847940,-3045.0,0.00017,2]
[399860873,1766761847952,-415971.8873539,0.00017,2]
[399860874,1766761849150,-372.73236225,0.00017,2]
[399860875,1766761849232,-276.45216993,0.00017,2]
[399860887,1766761902912,485.95407655,0.0003013,120]
[399860967,1766762685897,151.6,7.582e-05,2]
[399860968,1766762686090,151.6,8.213e-05,2]
[399860969,1766762686327,151.6,8.845e-05,2]
[399860970,1766762686543,151.6,9.477e-05,2]
[399860971,1766762686952,151.6,0.00010109,2]
[399860972,1766762687150,151.6,0.00010741,2]
[399860973,1766762687371,151.6,0.00011372,2]
[399860975,1766762719432,3193.33283452,9e-05,2]
[399860976,1766762725528,1025.08508264,0.000108,2]
[399860977,1766762764966,5534.64903129,0.00011,2]
[399861014,1766763009221,-248.0,0.00012004,2]
[399861015,1766763009247,-42.3099233,0.00012004,2]
[399861016,1766763011280,-166.66,0.00012004,2]
[399861017,1766763015417,-138.34,0.00012004,2]
[399861018,1766763015442,-23.19292789,0.00012004,2]
[399861024,1766763032278,-86.09714881,0.00012004,2]
[399861026,1766763032290,-151.6,0.00012636,2]
[399861028,1766763032301,-250.0,0.00013204,2]
[399861030,1766763032312,-195.0,0.00013205,2]
[399861031,1766763032322,-151.6,0.00013268,2]
[399861032,1766763032333,-200.37128803,0.00013378,2]
[399861033,1766763032343,-200.37128802,0.00013429,2]
[399861034,1766763032355,-1200.0,0.00013477,2]
[399861035,1766763032365,-1200.0,0.00013478,2]
[399861036,1766763032376,-300.0,0.00013478,2]
[399861037,1766763032385,-150.0,0.00013478,2]
[399861038,1766763032395,-267.20966786,0.00013478,2]
[399861039,1766763032419,-32.79033214,0.00013478,2]
[399861040,1766763032430,-264.43201824,0.00013479,2]
[399861041,1766763032440,-200.37128802,0.00013479,2]
[399861042,1766763032450,-8688.57217568,0.00013479,2]
[399861043,1766763032460,-214.11642948,0.00013479,2]
[399861044,1766763032471,-714.8246733,0.00013479,2]
[399861045,1766763032481,-208.44399176,0.0001357,2]
[399861046,1766763032490,-1046.106,0.00013577,2]
[399861047,1766763032504,-500.0,0.00013577,2]
[399861048,1766763032514,-500.0,0.00013577,2]
[399861049,1766763032524,-500.0,0.00013577,2]
[399861050,1766763032534,-500.0,0.00013577,2]
[399861051,1766763032544,-338.02053574,0.00013577,2]
[399861052,1766763032554,-329.2656794,0.00013577,2]
[399861053,1766763032565,-500.0,0.00013577,2]
[399861054,1766763032575,-500.0,0.00013577,2]
[399861055,1766763032585,-500.0,0.00013577,2]
[399861056,1766763032596,-500.0,0.00013577,2]
[399861057,1766763032607,-500.0,0.00013577,2]
[399861058,1766763032616,-500.0,0.00013577,2]
[399861059,1766763032626,-500.0,0.00013577,2]
[399861060,1766763032636,-500.0,0.00013577,2]
[399861061,1766763032646,-500.0,0.00013577,2]
[399861062,1766763032656,-532.30271839,0.00013577,2]
[399861063,1766763032667,-1000.0,0.00013579,2]
[399861064,1766763032677,-150.0,0.00013673,2]
[399861065,1766763032687,-613.65,0.00013699,2]
[399861066,1766763032697,-500.0,0.00013699,2]
[399861067,1766763032707,-597.70850485,0.00013699,2]
[399861068,1766763032717,-500.0,0.00013699,2]
[399861069,1766763032726,-8688.5721756,0.00013859,2]
[399861070,1766763032736,-151.6,0.000139,2]
[399861071,1766763032746,-86698.05149072,0.0001399,2]
[399861072,1766763032756,-8688.5721756,0.00014239,2]
[399861073,1766763032765,-151.6,0.00014532,2]
[399861074,1766763032776,-8688.5721756,0.00014619,2]
[399861075,1766763032786,-166.66,0.00014752,2]
[399861076,1766763032797,-480.0,0.00014825,2]
[399861077,1766763032806,-250.0,0.0001497,2]
[399861078,1766763032816,-8688.5721756,0.00014999,2]
[399861079,1766763032826,-166.66,0.00015062,2]
[399861080,1766763032836,-151.6,0.00015163,2]
[399861081,1766763032846,-166.66,0.00015373,2]
[399861082,1766763032861,-8688.5721756,0.0001538,2]
[399861083,1766763032872,-174.98,0.00015591,2]
[399861084,1766763032883,-166.66,0.00015684,2]
[399861085,1766763032893,-8688.5721756,0.0001576,2]
[399861086,1766763032903,-166.66,0.00015994,2]
[399861087,1766763032913,-124488.55056667,0.00016,4]
[399861088,1766763032927,-2560.98054326,0.00016,4]
[399861089,1766763032938,-726.89716718,0.00016,4]
[399861090,1766763032954,-1105.61213384,0.00016,4]
[399861091,1766763032966,-403.1917107,0.00016,4]
[399861092,1766763032978,-598.44007945,0.00016,4]
[399861093,1766763038423,-12987.04402191,0.00016,4]
[399861094,1766763038436,-6180.06466264,0.00016,4]
[399861095,1766763038449,-5166.6679344,0.00016,4]
[399861096,1766763038464,-349.19103012,0.00016,4]
[399861097,1766763038508,-735.85953622,0.00016,4]
[399861100,1766763040466,-8475.23078,0.00016,4]
[399861101,1766763040479,-1391.70074159,0.00016,4]
[399861102,1766763040492,-303.31060009,0.00016,4]
[399861103,1766763040505,-376.69590001,0.00016,4]
[399861104,1766763040542,-866.98,0.00016,4]
[399861105,1766763040694,-869.24,0.00016,4]
[399861106,1766763040707,-453.41648923,0.00016,4]
[399861161,1766763044178,-665.96670498,0.00016,4]
[399861162,1766763045193,-348.044,0.00016,4]
[399861191,1766763046572,-6195.47563172,0.00016,4]
[399861192,1766763046631,-188193.44570301,0.00016,4]
[399861193,1766763046644,-1176.05176137,0.00016,4]
[399861194,1766763046656,-6360.03219206,0.00016,4]
[399861214,1766763218222,1018.29905718,0.00030137,120]
[399861229,1766763351892,1619.330784,0.0003,120]
[399861245,1766763617868,20000.0,0.0003,120]
[399861414,1766764231551,-262.0,0.00013598,2]
[399861415,1766764231561,-329.1245,0.00013598,2]
[399861416,1766764231571,-24.32612578,0.00013699,2]
[399861417,1766764231735,-413.92158578,0.00013699,2]
[399861429,1766764237676,-103.61228844,0.00013699,2]
[399861430,1766764237687,-1000.0,0.0001461,2]
[399861431,1766764237697,-500.0,0.00014671,2]
[399861432,1766764237708,-1200.0,0.00014921,2]
[399861433,1766764237718,-500.0,0.00014922,2]
[399861434,1766764237728,-500.0,0.00014922,2]
[399861435,1766764237738,-413.01847389,0.00014922,2]
[399861436,1766764237749,-300.0,0.00014922,2]
[399861437,1766764237759,-300.0,0.00014922,2]
[399861438,1766764237770,-19282.95303011,0.00014923,2]
[399861439,1766764237786,-50252.42696989,0.00014923,2]
[399861440,1766764237797,-152.0,0.00014932,2]
[399861441,1766764237807,-163.03184917,0.00014958,2]
[399861442,1766764237817,-300.0,0.00014958,2]
[399861443,1766764237827,-836.885,0.00015062,2]
[399861444,1766764237837,-600.46,0.00015103,2]
[399861445,1766764237847,-339.8,0.00015255,2]
[399861447,1766764237857,-150.0,0.00015288,2]
[399861448,1766764237867,-150.0,0.00015288,2]
[399861449,1766764237877,-150.0,0.00015288,2]
[399861450,1766764237887,-150.00000001,0.00015288,2]
[399861451,1766764237897,-999.0,0.00015315,3]
[399861452,1766764237907,-166.66,0.00015382,2]
[399861453,1766764237918,-150.0,0.00015394,2]
[399861454,1766764237928,-2646.02395234,0.00015418,2]
[399861455,1766764237937,-150.0,0.000155,2]
[399861456,1766764237947,-250.57936619,0.00015517,2]
[399861457,1766764237957,-477.4968443,0.00015518,2]
[399861458,1766764237967,-11776.20353043,0.00015518,2]
[399861461,1766764239671,-3355.13629713,0.00015518,2]
[399861462,1766764239933,-785.864716,0.00015518,2]
[399861463,1766764239946,-270.8181991,0.00015518,2]
[399861464,1766764239959,-60756.73002054,0.00015518,2]
[399861465,1766764239970,-30119.4528156,0.00015518,2]
[399861466,1766764239981,-1030.2667451,0.00015518,2]
[399861468,1766764239994,-3257.367938,0.00015518,2]
[399861470,1766764240004,-181.44,0.00015518,2]
[399861472,1766764240014,-2646.02395229,0.00015583,2]
[399861474,1766764240024,-1852.42,0.00015583,2]
[399861476,1766764240034,-150.0,0.00015606,2]
[399861478,1766764240044,-150.0,0.00015626,2]
[399861480,1766764240054,-3085.0,0.00015626,2]
[399861482,1766764240064,-150.0,0.00015626,2]
[399861484,1766764240074,-150.0,0.00015626,2]
[399861486,1766764240084,-159.1636992,0.00015653,2]
[399861488,1766764240093,-3085.0,0.00015653,2]
[399861490,1766764240104,-150.0,0.00015653,2]
[399861492,1766764240114,-151.17874512,0.00015653,2]
[399861494,1766764240124,-500.0,0.00015673,2]
[399861496,1766764240134,-500.0,0.00015673,2]
[399861498,1766764240144,-3085.0,0.00015681,2]
[399861500,1766764240154,-150.0,0.00015681,2]
[399861502,1766764240164,-3085.0,0.00015708,2]
[399861503,1766764240174,-225.38136853,0.00015708,2]
[399861506,1766764240184,-150.0,0.00015712,2]
[399861507,1766764240194,-4100.7413,0.00015729,2]
[399861509,1766764240204,-3085.0,0.00015736,2]
[399861512,1766764240214,-2646.02395229,0.00015747,2]
[399861513,1766764240223,-3085.0,0.00015763,2]
[399861515,1766764240233,-3085.0,0.0001579,2]
[399861517,1766764240243,-181.44,0.00015792,2]
[399861519,1766764240253,-156.93078452,0.00015812,2]
[399861522,1766764240263,-3085.0,0.00015818,2]
[399861524,1766764240273,-150.0,0.00015818,2]
[399861526,1766764240285,-2606.57165268,0.00015825,2]
[399861528,1766764240296,-187.35187576,0.00015825,2]
[399861530,1766764240306,-226.65601566,0.00015829,2]
[399861532,1766764240316,-3085.0,0.00015845,2]
[399861534,1766764240327,-151.0,0.00015849,2]
[399861536,1766764240338,-3085.0,0.00015873,2]
[399861538,1766764240347,-166.66,0.0001589,2]
[399861540,1766764240358,-500.0,0.00015899,2]
[399861542,1766764240368,-533.93594502,0.00015899,2]
[399861544,1766764240377,-3085.0,0.000159,2]
[399861546,1766764240387,-7957.2104,0.000159,2]
[399861548,1766764240397,-1000.0,0.000159,2]
[399861550,1766764240407,-289029.96028258,0.000159,2]
[399861552,1766764240419,-1579.56364063,0.000159,2]
[399861554,1766764240432,-357.67640451,0.000159,2]
[399861557,1766764240443,-488.74309952,0.000159,2]
[399861559,1766764240455,-871.955,0.000159,2]
[399861561,1766764240467,-275.895,0.000159,2]
[399861563,1766764240479,-581.58977608,0.000159,2]
[399861565,1766764240491,-458.91170172,0.000159,2]
[399861579,1766764244560,-3086.11320278,0.000159,2]
[399861581,1766764245666,-151.0,0.00015852,2]
[399861582,1766764245676,-768.4633,0.000159,2]
[399861583,1766764245812,-500.0,0.00015729,2]
[399861584,1766764245822,-11555.56516609,0.000159,2]
[399861585,1766764245952,-690945.56342609,0.000159,2]
[399861586,1766764245963,-2646.02395229,0.00015912,2]
[399861587,1766764245974,-150.0,0.00015925,2]
[399861588,1766764245983,-3085.0,0.00015927,2]
[399861589,1766764245994,-2606.57165268,0.00015944,2]
[399861590,1766764246004,-3085.0,0.00015955,2]
[399861592,1766764246013,-3085.0,0.00015982,2]
[399861593,1766764246023,-4840.95301445,0.00015983,2]
[399861594,1766764246032,-304296.13972065,0.00016,4]
[399861595,1766764246043,-1740.81,0.00016,4]
[399861756,1766765431689,-500.0,0.000144,2]
[399861758,1766765431747,-250.0,0.000144,2]
[399861759,1766765431760,-396.09815507,0.000144,2]
[399861760,1766765431777,-590.2430935,0.000144,2]
[399861761,1766765431789,-4337.01255468,0.000144,2]
[399861762,1766765431802,-276.65889505,0.000144,2]
[399861763,1766765431814,-437.04724884,0.000144,2]
[399861764,1766765431826,-583.18548524,0.000144,2]
[399861765,1766765431839,-10258.53278528,0.000144,2]
[399861766,1766765431851,-4230.2938152,0.000144,2]
[399861767,1766765431872,-298.02975,0.000144,2]
[399861804,1766765438208,-156056.70099488,0.000144,2]
[399861805,1766765438222,-226685.39068864,0.000144,2]
[399861806,1766765438235,-16894.57282824,0.000144,2]
[399861807,1766765438248,-76290.07480754,0.000144,2]
[399861808,1766765438358,-6217.11508911,0.000144,2]
[399861809,1766765438371,-2576.0915,0.000144,2]
[399861810,1766765438411,-7389.36454677,0.000144,2]
[399861814,1766765439826,-382.54190737,0.000144,2]
[399861815,1766765439846,-377416.31302918,0.000144,2]
[399861816,1766765439906,-564.11572434,0.000144,2]
[399861817,1766765439919,-12986.48553838,0.000144,2]
[399861818,1766765439932,-2791.31029547,0.000144,2]
[399861819,1766765439983,-581.59773853,0.000144,2]
[399861820,1766765439996,-871.8,0.000144,2]
[399861821,1766765440008,-274.289997,0.000144,2]
[399861822,1766765440020,-506.37642362,0.000144,2]
[399861823,1766765440032,-2590.80063541,0.000144,2]
[399861824,1766765440044,-9449.84993306,0.000144,2]
[399861825,1766765440057,-844.27,0.000144,2]
[399861826,1766765440177,-893.0,0.000144,2]
[399861827,1766765440189,-6081.79999991,0.000144,2]
[399861828,1766765440201,-23872.8047668,0.000144,2]
[399861829,1766765440212,-524.27685482,0.000144,2]
[399861830,1766765440224,-481.03654491,0.000144,2]
[399861831,1766765440348,-44620.91837316,0.000144,2]
[399861834,1766765440359,-1587.61437141,0.00014427,2]
[399861835,1766765440369,-269.0,0.00014427,2]
[399861837,1766765440381,-238.0,0.00014498,2]
[399861840,1766765440391,-300.0,0.00014498,2]
[399861841,1766765440401,-1200.0,0.00014498,2]
[399861844,1766765440411,-500.0,0.00014499,2]
[399861846,1766765440422,-500.0,0.00014499,2]
[399861847,1766765440431,-500.0,0.00014499,2]
[399861850,1766765440442,-500.0,0.00014499,2]
[399861851,1766765440451,-500.0,0.00014499,2]
[399861853,1766765440461,-500.0,0.00014499,2]
[399861855,1766765440471,-500.0,0.00014499,2]
[399861857,1766765440481,-594.09161034,0.00014499,2]
[399861860,1766765440495,-175.40555634,0.00014499,2]
[399861862,1766765440505,-500.0,0.00014499,2]
[399861864,1766765440515,-500.0,0.00014499,2]
[399861866,1766765440526,-500.0,0.00014499,2]
[399861868,1766765440536,-414.63567975,0.00014499,2]
[399861870,1766765440546,-500.0,0.00014499,2]
[399861872,1766765440556,-500.0,0.00014499,2]
[399861874,1766765440566,-500.0,0.00014499,2]
[399861876,1766765440576,-417.80340117,0.00014499,2]
[399861878,1766765440586,-204972.98561351,0.000145,2]
[399861880,1766765440596,-943.994,0.00014527,2]
[399861882,1766765440606,-1587.61437137,0.00014702,2]
[399861884,1766765440615,-194.27658486,0.00014799,2]
[399861886,1766765440626,-500.0,0.00014822,2]
[399861888,1766765440635,-500.0,0.00014822,2]
[399861890,1766765440645,-500.0,0.00014822,2]
[399861892,1766765440657,-500.0,0.00014822,2]
[399861894,1766765440667,-4633.54644025,0.00014876,2]
[399861896,1766765440677,-1587.61437137,0.00014977,2]
[399861898,1766765440690,-200.0,0.00015083,2]
[399861900,1766765440702,-200.0,0.00015099,2]
[399861902,1766765440713,-4633.54644022,0.00015101,2]
[399861904,1766765440724,-1672.12,0.00015114,2]
[399861906,1766765440734,-1587.61437137,0.00015251,2]
[399861908,1766765440745,-150.0,0.00015288,2]
[399861910,1766765440755,-150.0,0.00015288,2]
[399861912,1766765440765,-4633.54644022,0.00015326,2]
[399861914,1766765440775,-150.0,0.00015476,2]
[399861942,1766765441052,-1587.61437137,0.00015526,2]
[399861945,1766765441064,-4633.54644022,0.00015551,2]
[399861946,1766765441074,-150.0,0.00015665,2]
[399861948,1766765441088,-500.77724877,0.00015673,2]
[399861951,1766765441100,-299.7519254,0.00015673,2]
[399861952,1766765441110,-500.0,0.00015673,2]
[399861954,1766765441120,-1286.0,0.00015712,2]
[399861957,1766765441130,-1286.0,0.00015739,2]
[399861958,1766765441139,-1286.0,0.00015767,2]
[399861960,1766765441150,-4633.54644022,0.00015776,2]
[399861963,1766765441159,-1286.0,0.00015794,2]
[399861964,1766765441169,-1587.61437137,0.00015801,2]
[399861967,1766765441180,-1286.0,0.00015822,2]
[399861970,1766765441201,-500.0,0.00015843,2]
[399861972,1766765441214,-1286.0,0.00015849,2]
[399861974,1766765441224,-150.0,0.00015854,2]
[399861976,1766765441235,-300.0,0.0001587,2]
[399861978,1766765441251,-500.0,0.0001587,2]
[399861980,1766765441262,-1286.0,0.00015876,2]
[399861982,1766765441273,-500.0,0.00015898,2]
[399861984,1766765441283,-1286.0,0.00015904,2]
[399861986,1766765441296,-500.0,0.00015925,2]
[399861989,1766765441306,-1286.0,0.00015931,2]
[399861991,1766765441317,-500.0,0.00015953,2]
[399861993,1766765441329,-1286.0,0.00015959,2]
[399861994,1766765441344,-500.0,0.0001598,2]
[399861996,1766765441354,-230.16311913,0.00015983,2]
[399861999,1766765441365,-622.95838781,0.00015986,2]
[399862001,1766765441375,-500.0,0.00015986,2]
[399862003,1766765441385,-500.0,0.00015986,2]
[399862005,1766765441397,-500.0,0.00015986,2]
[399862007,1766765441408,-322.6107,0.00015986,2]
[399862009,1766765441418,-500.0,0.00015986,2]
[399862011,1766765441429,-500.0,0.00015986,2]
[399862013,1766765441439,-500.0,0.00015986,2]
[399862015,1766765441449,-500.0,0.00015986,2]
[399862017,1766765441459,-500.0,0.00015986,2]
[399862019,1766765441470,-500.0,0.00015986,2]
[399862021,1766765441480,-500.0,0.00015986,2]
[399862023,1766765441489,-500.0,0.00015986,2]
[399862025,1766765441499,-500.0,0.00015986,2]
[399862027,1766765441510,-500.0,0.00015986,2]
[399862029,1766765441519,-250.0,0.00015986,2]
[399862031,1766765441530,-500.0,0.00015986,2]
[399862033,1766765441540,-250.0,0.00015986,2]
[399862035,1766765441550,-500.0,0.00015986,2]
[399862038,1766765441565,-500.0,0.00015986,2]
[399862040,1766765441575,-250.0,0.00015986,2]
[399862042,1766765441585,-500.0,0.00015986,2]
[399862044,1766765441595,-500.0,0.00015986,2]
[399862046,1766765441605,-500.0,0.00015986,2]
[399862048,1766765441615,-250.0,0.00015986,2]
[399862050,1766765441627,-500.0,0.00015986,2]
[399862052,1766765441636,-250.0,0.00015986,2]
[399862054,1766765441647,-500.0,0.00015986,2]
[399862056,1766765441659,-250.0,0.00015986,2]
[399862058,1766765441669,-250.0,0.00015986,2]
[399862060,1766765441680,-250.0,0.00015986,2]
[399862062,1766765441690,-250.0,0.00015986,2]
[399862065,1766765441703,-250.0,0.00015986,2]
[399862067,1766765441714,-250.0,0.00015986,2]
[399862069,1766765441725,-500.0,0.00015986,2]
[399862071,1766765441736,-500.0,0.00015986,2]
[399862073,1766765441746,-500.0,0.00015986,2]
[399862075,1766765441757,-500.0,0.00015986,2]
[399862077,1766765441767,-500.0,0.00015986,2]
[399862079,1766765441777,-500.0,0.00015986,2]
[399862081,1766765441787,-500.0,0.00015986,2]
[399862083,1766765441797,-500.0,0.00015986,2]
[399862085,1766765441807,-500.0,0.00015986,2]
[399862087,1766765441816,-500.0,0.00015986,2]
[399862089,1766765441826,-500.0,0.00015986,2]
[399862091,1766765441836,-358.3947287,0.00015986,2]
[399862093,1766765441846,-500.0,0.00015986,2]
[399862095,1766765441857,-500.0,0.00015986,2]
[399862097,1766765441867,-561.4016953,0.00015986,2]
[399862099,1766765441878,-200.0,0.00015986,2]
[399862101,1766765441888,-198.82276029,0.00015986,2]
[399862103,1766765441898,-332.98489767,0.00015986,2]
[399862105,1766765441908,-1286.0,0.00015986,2]
[399862107,1766765441918,-336.11,0.00015986,2]
[399862110,1766765441935,-142406.25330653,0.00016,4]
[399862112,1766765441946,-4633.54644022,0.00016,2]
[399862114,1766765441957,-500.0,0.00016007,2]
[399862116,1766765441967,-1286.0,0.00016013,2]
[399862118,1766765441978,-311.20663021,0.00016035,2]
[399862120,1766765441988,-1286.0,0.00016041,2]
[399862122,1766765441998,-150.0,0.00016043,2]
[399862124,1766765442008,-1286.0,0.00016068,2]
[399862126,1766765442019,-1587.61437137,0.00016076,2]
[399862128,1766765442030,-1286.0,0.00016096,2]
[399862130,1766765442040,-946.0,0.00016121,2]
[399862132,1766765442049,-1286.0,0.00016123,2]
[399862134,1766765442059,-500.0,0.00016143,2]
[399862136,1766765442068,-1286.0,0.0001615,2]
[399862138,1766765442078,-1286.0,0.00016178,2]
[399862140,1766765442088,-344.1615645,0.00016195,2]
[399862142,1766765442098,-151.0,0.000162,2]
[399862144,1766765442107,-1286.0,0.00016205,2]
[399862146,1766765442118,-1000.0,0.00016221,2]
[399862148,1766765442128,-4633.54644022,0.00016225,2]
[399862150,1766765442138,-150.0,0.00016231,2]
[399862152,1766765442148,-1286.0,0.00016233,2]
[399862154,1766765442158,-1286.0,0.0001626,2]
[399862156,1766765442169,-336.11,0.0001626,2]
[399862158,1766765442179,-1286.0,0.00016287,2]
[399862160,1766765442190,-166.66,0.00016305,2]
[399862162,1766765442200,-1286.0,0.00016315,2]
[399862164,1766765442210,-1287.23800588,0.00016342,2]
[399862166,1766765442220,-1587.61437137,0.0001635,2]
[399862168,1766765442230,-166.66,0.00016398,2]
[399862171,1766765442240,-946.0,0.00016411,2]
[399862173,1766765442250,-150.0,0.0001642,2]
[399862175,1766765442260,-1000.0,0.00016436,2]
[399862177,1766765442270,-500.0,0.00016438,2]
[399862179,1766765442284,-494.52431035,0.00016438,2]
[399862181,1766765442294,-8575.16,0.00016438,2]
[399862183,1766765442305,-946.0,0.00016439,2]
[399862185,1766765442315,-4633.54644022,0.0001645,2]
[399862187,1766765442325,-510.09023585,0.00016465,2]
[399862189,1766765442335,-425.65,0.0001652,2]
[399862191,1766765442346,-336.11,0.00016534,2]
[399862193,1766765442355,-946.0,0.00016539,2]
[399862195,1766765442365,-5856.0,0.00016565,2]
[399862197,1766765442375,-946.0,0.00016577,2]
[399862200,1766765442386,-946.0,0.00016578,2]
[399862202,1766765442396,-946.0,0.00016583,2]
[399862204,1766765442406,-150.0,0.00016609,2]
[399862206,1766765442416,-1587.61437137,0.00016625,2]
[399862208,1766765442426,-946.0,0.00016666,2]
[399862210,1766765442436,-4633.54644022,0.00016675,2]
[399862212,1766765442446,-946.0,0.00016735,2]
[399862214,1766765442456,-1005.46621584,0.00016768,2]
[399862216,1766765442466,-946.0,0.0001677,2]
[399862218,1766765442476,-946.0,0.00016788,2]
[399862220,1766765442486,-150.0,0.00016798,2]
[399862222,1766765442496,-336.11,0.00016808,2]
[399862224,1766765442506,-946.0,0.00016816,2]
[399862226,1766765442516,-946.0,0.00016871,2]
[399862228,1766765442526,-946.0,0.00016891,2]
[399862230,1766765442536,-946.0,0.00016892,2]
[399862232,1766765442547,-946.0,0.00016894,2]
[399862234,1766765442557,-1587.61437137,0.000169,2]
[399862236,1766765442568,-4633.54644022,0.000169,2]
[399862238,1766765442577,-161.01679871,0.000169,2]
[399862241,1766765442588,-171.6502218,0.000169,2]
[399862243,1766765442598,-202.5810054,0.000169,2]
[399862246,1766765442608,-166.66,0.00016905,2]
[399862248,1766765442617,-946.0,0.00016952,2]
[399862250,1766765442628,-946.0,0.00016961,2]
[399862252,1766765442638,-150.0,0.00016973,2]
[399862254,1766765442653,-150.0,0.00016973,2]
[399862256,1766765442666,-31771.6,0.00016986,2]
[399862258,1766765442676,-176.01870488,0.00016986,2]
[399862260,1766765442686,-946.0,0.00016989,2]
[399862263,1766765442698,-600.46,0.00016991,2]
[399862265,1766765442709,-946.0,0.00016995,2]
[399862267,1766765442719,-946.0,0.00016997,2]
[399862269,1766765442729,-1115.57403938,0.00016999,5]
[399862271,1766765442739,-11720.60919845,0.00016999,2]
[399862273,1766765442750,-1090.24693266,0.00016999,5]
[399862275,1766765442760,-300.0,0.00016999,2]
[399862277,1766765442770,-300.0,0.00016999,2]
[399862279,1766765442780,-666.0,0.00016999,2]
[399862281,1766765442792,-500.0,0.00016999,2]
[399862283,1766765442802,-410.64,0.00016999,2]
[399862285,1766765442812,-300.0,0.00016999,2]
[399862287,1766765442823,-310422.39265162,0.00017,2]
[399862290,1766765442834,-584926.19298345,0.00017,2]
[399862292,1766765442848,-225624.5903755,0.00017,2]
[399862305,1766765443981,-172.52224244,0.000169,2]
[399862306,1766765443991,-15051.58193702,0.00017,2]
[399862307,1766765445273,-57274.92085042,0.00017,2]
[399862317,1766765446005,-695.29236772,0.00017,2]
[399862318,1766765446017,-954.45988669,0.00017,2]
[399862319,1766765446030,-9535.13739471,0.00017,2]
[399862320,1766765446057,-138472.98281305,0.00017,2]
[399862321,1766765446069,-1529.2089369,0.00017,2]
[399862322,1766765446211,-294300.28551109,0.00017,2]
[399862325,1766765446223,-266144.35066238,0.00017,2]
[399862544,1766766631841,-514.76,0.00013699,2]
[399862546,1766766631852,-143.09661962,0.00013699,2]
[399862548,1766766631864,-119.90338038,0.00013699,2]
[399862550,1766766631874,-224.67661962,0.00014112,2]
[399862552,1766766631887,-530.51838038,0.00014112,2]
[399862553,1766766631898,-186.00430298,0.00014299,2]
[399862554,1766766631910,-558.76267928,0.00014299,2]
[399862555,1766766631923,-455.23301774,0.00014299,2]
[399862556,1766766631934,-876.03022745,0.000143,2]
[399862557,1766766631947,-3078.20260405,0.000143,2]
[399862558,1766766631960,-285.77702189,0.000143,2]
[399862559,1766766631973,-477.50618194,0.000143,2]
[399862560,1766766631985,-569.31587421,0.000143,2]
[399862561,1766766631996,-1100.7542825,0.000143,2]
[399862562,1766766632009,-1013.08682692,0.000143,2]
[399862563,1766766632021,-3274.61395881,0.000143,2]
[399862564,1766766632035,-519.99902324,0.000143,2]
[399862565,1766766632047,-408.2574532,0.000143,2]
[399862566,1766766632350,-323.3292545,0.000143,2]
[399862567,1766766632363,-607.56498033,0.000143,2]
[399862568,1766766632379,-5335.14297528,0.000143,2]
[399862569,1766766632391,-4010.34,0.000143,2]
[399862595,1766766638113,-243.46678598,0.00014299,2]
[399862596,1766766638126,-212.73729775,0.00014299,2]
[399862597,1766766638142,-22.17482918,0.00014299,2]
[399862598,1766766638156,-190.91443762,0.00014299,2]
[399862599,1766766638168,-454.89906782,0.00014299,2]
[399862600,1766766638179,-4072.28473568,0.000143,2]
[399862601,1766766638190,-288.75065604,0.000143,2]
[399862602,1766766638203,-351.88118535,0.000143,2]
[399862603,1766766638216,-476.81295156,0.000143,2]